bitfinex/quotes_SOLUSD_20230404
["timestamp","ask_amount","ask_price","bid_price","bid_amount"]
[1680650394933,1.0,20.89,20.873,23.919]
[1680650395555,1.0,20.89,20.874,10.0]
[1680650396552,1.0,20.89,20.873,23.919]
[1680650396738,0.99,20.88,20.873,23.919]
[1680650399049,0.99,20.88,20.874,10.0]
[1680650400339,0.99,20.88,20.873,23.919]
[1680650402648,10.0,20.879,20.857,10.0]
[1680650402856,0.99,20.87,20.858,20.0]
[1680650403447,17.0,20.878,20.858,20.0]
[1680650403662,17.0,20.878,20.859,10.0]
[1680650403849,17.0,20.878,20.857,10.0]
[1680650404257,10.0,20.877,20.857,10.0]
[1680650404459,17.0,20.876,20.857,10.0]
[1680650405249,17.0,20.876,20.855,10.0]
[1680650405250,17.0,20.878,20.858,20.0]
[1680650405459,17.0,20.878,20.855,10.0]
[1680650405460,17.0,20.878,20.857,10.0]
[1680650405965,17.0,20.878,20.858,20.0]
[1680650406568,10.0,20.877,20.858,20.0]
[1680650406754,17.0,20.876,20.858,20.0]
[1680650407469,17.0,20.876,20.859,10.0]
[1680650407652,17.0,20.876,20.86,20.0]
[1680650408553,10.0,20.875,20.856,20.0]
[1680650408753,17.0,20.874,20.856,20.0]
[1680650408957,1.0,20.87,20.855,20.0]
[1680650409369,1.0,20.87,20.856,10.0]
[1680650409680,1.0,20.87,20.857,20.0]
[1680650410171,1.0,20.87,20.853,20.0]
[1680650410361,18.0,20.87,20.853,20.0]
[1680650410555,1.0,20.87,20.853,20.0]
[1680650411266,1.0,20.87,20.854,10.0]
[1680650411461,1.0,20.87,20.856,10.0]
[1680650411863,10.99,20.88,20.858,10.0]
[1680650412161,10.99,20.88,20.859,20.0]
[1680650412357,17.0,20.876,20.859,20.0]
[1680650412667,17.0,20.876,20.86,10.0]
[1680650412856,17.0,20.877,20.86,10.0]
[1680650416573,17.0,20.877,20.859,20.0]
[1680650416758,17.0,20.877,20.857,20.0]
[1680650417365,17.0,20.877,20.858,10.0]
[1680650417566,17.0,20.877,20.859,20.0]
[1680650418678,17.0,20.877,20.86,21.571]
[1680650419082,17.0,20.877,20.861,10.0]
[1680650420374,8.14103425,20.88,20.86,21.571]
[1680650420973,8.14103425,20.88,20.861,10.0]
[1680650421764,17.0,20.877,20.861,10.0]
[1680650422675,17.0,20.877,20.86,21.571]
[1680650426481,17.0,20.877,20.861,10.0]
[1680650428281,8.14103425,20.88,20.861,10.0]
[1680650428669,0.99,20.88,20.861,10.0]
[1680650429683,17.0,20.877,20.861,10.0]
[1680650430067,17.0,20.877,20.861,17.15103425]
[1680650431286,0.99,20.88,20.861,17.15103425]
[1680650439000,0.99,20.88,20.861,10.0]
[1680650440402,0.99,20.88,20.86,31.571]
[1680650440703,17.0,20.877,20.858,21.573]
[1680650440996,17.0,20.877,20.858,20.073]
[1680650441180,10.0,20.876,20.858,20.073]
[1680650441580,17.0,20.875,20.858,20.073]
[1680650441784,17.0,20.875,20.859,10.0]
[1680650442199,1.0,20.87,20.861,21.57]
[1680650442382,1.0,20.88,20.861,64.712]
[1680650442685,1.0,20.88,20.865,21.566]
[1680650443375,1.0,20.88,20.866,7.15103425]
[1680650443990,1.0,20.88,20.865,21.566]
[1680650444192,1.0,20.88,20.866,10.0]
[1680650444802,1.0,20.88,20.865,21.566]
[1680650445003,1.0,20.88,20.866,7.15103425]
[1680650447502,1.0,20.88,20.862,115.262]
[1680650447802,1.0,20.88,20.863,7.15103425]
[1680650451209,1.0,20.87,20.859,24.797964]
[1680650451413,1.0,20.87,20.857,133.651164]
[1680650451706,1.0,20.87,20.859,7.15103425]
[1680650452108,1.0,20.87,20.857,108.8532]
[1680650452411,1.0,20.87,20.855,24.797964]
[1680650452614,1.0,20.87,20.859,49.50922416]
[1680650452798,23.96,20.868,20.849,24.797964]
[1680650453110,1.0,20.86,20.849,24.797964]
[1680650453317,1.0,20.86,20.856,31.571]
[1680650453522,23.965,20.863,20.842,24.797964]
[1680650453523,17.0,20.862,20.842,24.797964]
[1680650453726,0.99,20.85,20.841,19.797964]
[1680650454198,1.0,20.86,20.841,104.30321039]
[1680650454398,1.0,20.86,20.842,118.1077]
[1680650454797,1.0,20.86,20.843,7.15103425]
[1680650455014,1.0,20.86,20.844,10.0]
[1680650455425,1.0,20.86,20.844,47.64295198]
[1680650455608,1.0,20.86,20.838,146.71944438]
[1680650455821,1.0,20.86,20.839,139.4512]
[1680650456032,1.0,20.86,20.84,10.0]
[1680650458022,1.0,20.86,20.844,21.588]
[1680650460131,18.0,20.86,20.844,21.588]
[1680650460923,1.0,20.86,20.845,10.0]
[1680650461106,1.0,20.86,20.848,21.584]
[1680650461835,1.0,20.86,20.849,10.0]
[1680650463332,1.0,20.86,20.849,126.915]
[1680650463630,1.0,20.86,20.852,21.58]
[1680650463845,1.0,20.87,20.852,21.58]
[1680650464820,17.0,20.866,20.852,21.58]
[1680650465015,1.0,20.86,20.852,21.58]
[1680650466417,1.0,20.86,20.836,43.193]
[1680650466625,0.99,20.85,20.837,150.2879]
[1680650467030,0.99,20.85,20.83,47.67]
[1680650467031,0.99,20.85,20.832,21.6]
[1680650467240,0.99,20.85,20.83,156.3629]
[1680650467544,0.99,20.84,20.82,21.613]
[1680650469719,0.99,20.84,20.821,10.0]
[1680650471430,0.99,20.84,20.82,21.613]
[1680650471840,17.99,20.84,20.82,21.613]
[1680650472143,0.99,20.84,20.821,7.15103425]
[1680650472339,0.99,20.84,20.82,21.613]
[1680650472818,17.0,20.842,20.818,156.33585198]
[1680650472819,0.99,20.83,20.818,47.64295198]
[1680650473019,0.99,20.83,20.819,20.0]
[1680650473439,0.99,20.83,20.816,47.67]
[1680650473440,0.99,20.83,20.817,20.0]
[1680650473933,0.9,20.84,20.821,21.611]
[1680650474139,17.9,20.84,20.821,21.611]
[1680650474323,10.0,20.839,20.821,21.611]
[1680650475529,17.9,20.84,20.821,21.611]
[1680650475739,0.9,20.84,20.822,10.0]
[1680650476039,0.9,20.84,20.826,21.607]
[1680650476241,0.9,20.84,20.827,118.1434]
[1680650476747,10.9,20.85,20.831,10.0]
[1680650477324,10.9,20.85,20.83,21.603]
[1680650477524,10.9,20.85,20.831,117.2707]
[1680650478530,0.9,20.85,20.831,117.2707]
[1680650478732,0.9,20.85,20.835,10.0]
[1680650478931,0.9,20.85,20.834,21.599]
[1680650479351,0.9,20.85,20.831,117.2707]
[1680650480640,10.0,20.849,20.831,117.2707]
[1680650480826,17.0,20.848,20.831,117.2707]
[1680650481028,10.0,20.847,20.831,117.2707]
[1680650481229,17.0,20.846,20.831,117.2707]
[1680650481625,10.0,20.845,20.831,117.2707]
[1680650481832,0.91,20.84,20.831,117.2707]
[1680650482226,0.91,20.84,20.823,108.9887]
[1680650482451,0.91,20.84,20.824,113.3255]
[1680650482833,17.91,20.84,20.824,113.3255]
[1680650483430,10.0,20.839,20.824,113.3255]
[1680650483633,10.0,20.837,20.824,113.3255]
[1680650483831,17.0,20.836,20.824,113.3255]
[1680650484351,17.0,20.838,20.824,113.3255]
[1680650485953,17.91,20.84,20.824,113.3255]
[1680650486636,0.91,20.84,20.825,10.0]
[1680650488843,0.91,20.84,20.825,17.15103425]
[1680650489145,20.0,20.846,20.825,17.15103425]
[1680650489335,20.0,20.846,20.827,10.0]
[1680650489536,20.0,20.847,20.827,10.0]
[1680650490040,0.91,20.85,20.827,10.0]
[1680650490041,0.91,20.85,20.827,31.605]
[1680650490243,0.91,20.85,20.828,27.15103425]
[1680650490444,0.91,20.85,20.83,21.602]
[1680650490644,0.91,20.85,20.831,10.0]
[1680650490842,0.91,20.85,20.831,17.15103425]
[1680650492262,0.91,20.85,20.831,7.15103425]
[1680650493444,10.0,20.849,20.831,7.15103425]
[1680650493652,17.0,20.848,20.831,7.15103425]
[1680650494657,10.0,20.849,20.831,7.15103425]
[1680650495153,0.91,20.85,20.832,10.0]
[1680650495361,17.91,20.85,20.833,119.3272]
[1680650495653,10.0,20.849,20.833,119.3272]
[1680650495852,17.0,20.848,20.833,119.3272]
[1680650496067,10.0,20.849,20.834,119.5345]
[1680650496856,17.0,20.848,20.834,119.5345]
[1680650497358,10.0,20.849,20.834,119.5345]
[1680650497734,0.91,20.85,20.834,119.5345]
[1680650498950,17.91,20.85,20.834,119.5345]
[1680650499554,10.0,20.849,20.834,119.5345]
[1680650499756,17.0,20.848,20.834,119.5345]
[1680650499960,10.0,20.849,20.834,119.5345]
[1680650503060,0.91,20.85,20.835,10.0]
[1680650511157,0.91,20.85,20.834,119.5345]
[1680650511854,10.0,20.856,20.834,119.5345]
[1680650511855,14.74136855,20.858,20.835,27.15103425]
[1680650512053,17.0,20.857,20.836,10.0]
[1680650512249,17.0,20.859,20.836,17.15103425]
[1680650512446,10.0,20.858,20.837,27.15103425]
[1680650512660,17.0,20.857,20.838,10.0]
[1680650512863,17.0,20.857,20.839,20.0]
[1680650513046,10.0,20.858,20.84,10.0]
[1680650513466,10.91,20.86,20.84,10.0]
[1680650513651,10.91,20.86,20.841,17.0]
[1680650513861,0.91,20.86,20.841,17.0]
[1680650514164,0.91,20.86,20.842,111.6473]
[1680650514373,0.91,20.86,20.843,10.0]
[1680650515865,0.91,20.86,20.844,17.0]
[1680650516062,0.91,20.86,20.845,119.7765]
[1680650516261,0.91,20.86,20.846,10.0]
[1680650518972,19.194329,20.855,20.846,10.0]
[1680650519265,19.194329,20.855,20.845,7.15103425]
[1680650519471,19.194329,20.855,20.843,10.0]
[1680650519767,19.194329,20.855,20.843,17.15103425]
[1680650524067,19.194329,20.855,20.843,7.15103425]
[1680650524257,19.194329,20.855,20.842,111.6473]
[1680650527070,19.194329,20.855,20.843,10.0]
[1680650529575,19.194329,20.855,20.843,17.15103425]
[1680650533086,19.194329,20.855,20.842,111.6473]
[1680650533874,19.194329,20.855,20.843,27.0]
[1680650534085,0.91,20.86,20.843,27.0]
[1680650534380,0.91,20.86,20.843,34.15103425]
[1680650534561,0.91,20.86,20.845,21.587]
[1680650534758,0.91,20.86,20.846,20.0]
[1680650534970,0.91,20.86,20.846,44.15103425]
[1680650535175,0.91,20.86,20.847,10.0]
[1680650535378,10.0,20.866,20.848,37.0]
[1680650535584,69.82016205,20.869,20.848,37.0]
[1680650536080,14.04808638,20.869,20.849,10.0]
[1680650537562,14.04808638,20.869,20.852,21.58]
[1680650537767,14.04808638,20.869,20.849,17.15103425]
[1680650539283,0.9,20.87,20.851,21.581]
[1680650539467,15.1149442,20.87,20.853,10.0]
[1680650539663,0.9,20.87,20.853,10.0]
[1680650544196,55.77207567,20.874,20.855,21.577]
[1680650544375,0.91,20.88,20.855,21.577]
[1680650544376,14.62820483,20.877,20.855,21.577]
[1680650544687,0.91,20.88,20.856,27.15103425]
[1680650544872,0.91,20.88,20.858,10.0]
[1680650545387,0.91,20.88,20.859,20.0]
[1680650545575,17.0,20.877,20.859,20.0]
[1680650545984,17.0,20.877,20.86,10.0]
[1680650547695,14.40741882,20.879,20.86,10.0]
[1680650548280,14.40741882,20.879,20.859,153.206]
[1680650548994,20.0,20.874,20.86,10.0]
[1680650554100,20.0,20.874,20.863,21.569]
[1680650556796,20.0,20.874,20.864,10.0]
[1680650560999,20.0,20.874,20.863,21.569]
[1680650561303,20.0,20.874,20.861,10.0]
[1680650561684,20.0,20.874,20.86,17.15103425]
[1680650561891,20.0,20.874,20.86,10.0]
[1680650563284,20.0,20.874,20.862,21.569]
[1680650563696,20.0,20.874,20.863,10.0]
[1680650564988,20.0,20.874,20.861,7.15103425]
[1680650565804,20.0,20.874,20.862,10.0]
[1680650566807,20.0,20.874,20.861,7.15103425]
[1680650567910,20.0,20.874,20.859,131.634]
[1680650568093,17.0,20.873,20.859,20.0]
[1680650568294,20.0,20.874,20.857,20.0]
[1680650568591,10.0,20.877,20.855,10.0]
[1680650568796,37.0,20.876,20.854,21.577]
[1680650568997,0.9,20.87,20.852,113.0271]
[1680650569490,0.9,20.87,20.852,134.6061]
[1680650569695,0.9,20.87,20.853,10.0]
[1680650570087,0.9,20.87,20.854,7.15103425]
[1680650573305,0.9,20.87,20.852,113.0271]
[1680650573895,17.9,20.87,20.852,113.0271]
[1680650574704,10.0,20.869,20.852,113.0271]
[1680650575002,17.0,20.868,20.852,113.0271]
[1680650579714,17.0,20.868,20.853,10.0]
[1680650579916,17.9,20.87,20.853,10.0]
[1680650581320,17.9,20.87,20.855,10.0]
[1680650581518,0.9,20.87,20.856,21.575]
[1680650581814,20.0,20.874,20.857,17.0]
[1680650582019,20.0,20.877,20.857,17.0]
[1680650582610,0.91,20.87,20.857,7.15103425]
[1680650582921,0.91,20.87,20.856,20.0]
[1680650584023,0.91,20.87,20.857,10.0]
[1680650584714,0.91,20.87,20.856,20.0]
[1680650585421,0.91,20.88,20.858,31.573]
[1680650585627,0.91,20.88,20.859,17.0]
[1680650585921,0.91,20.88,20.861,10.0]
[1680650586122,0.91,20.88,20.862,17.0]
[1680650586520,20.0,20.877,20.862,17.0]
[1680650586903,20.0,20.877,20.86,27.15103425]
[1680650587104,0.9,20.87,20.856,136.244]
[1680650587536,0.9,20.87,20.856,20.0]
[1680650587831,8.05103425,20.87,20.856,20.0]
[1680650588018,10.0,20.868,20.856,20.0]
[1680650590513,17.0,20.869,20.856,20.0]
[1680650590824,0.9,20.87,20.856,20.0]
[1680650591914,0.9,20.87,20.856,133.3885]
[1680650594934,0.9,20.87,20.857,17.0]
[1680650595328,0.9,20.87,20.858,10.0]
[1680650595636,0.9,20.87,20.859,17.0]
[1680650597230,0.9,20.87,20.856,113.3885]
[1680650597633,17.9,20.87,20.856,113.3885]
[1680650598335,10.0,20.869,20.856,113.3885]
[1680650600927,17.0,20.868,20.856,113.3885]
[1680650604238,17.9,20.87,20.856,113.3885]
[1680650606636,10.0,20.869,20.856,113.3885]
[1680650606936,17.0,20.868,20.856,113.3885]
[1680650608439,17.0,20.868,20.848,7.15103425]
[1680650608639,17.0,20.868,20.845,115.9683]
[1680650608846,27.0,20.867,20.846,10.0]
[1680650610245,17.0,20.867,20.846,10.0]
[1680650610450,10.0,20.869,20.847,21.585]
[1680650610630,17.0,20.868,20.847,21.585]
[1680650610829,17.0,20.868,20.853,10.0]
[1680650611333,0.9,20.87,20.853,10.0]
[1680650613936,0.79527845,20.87,20.856,116.4983]
[1680650615339,17.79527845,20.87,20.856,116.4983]
[1680650615542,10.0,20.869,20.856,116.4983]
[1680650615747,0.79527845,20.87,20.856,116.4983]
[1680650616261,0.79527845,20.87,20.857,10.0]
[1680650616852,0.79527845,20.87,20.858,17.0]
[1680650617355,0.79527845,20.87,20.859,10.0]
[1680650618843,0.79527845,20.87,20.856,116.4983]
[1680650619838,0.79527845,20.87,20.857,10.0]
[1680650621056,0.79527845,20.87,20.856,116.4983]
[1680650623855,0.79527845,20.87,20.857,10.0]
[1680650624243,0.79527845,20.87,20.858,37.0]
[1680650624635,0.79527845,20.87,20.859,10.0]
[1680650624838,0.79527845,20.87,20.86,20.0]
[1680650625459,0.79527845,20.87,20.86,138.8176]
[1680650635175,0.79527845,20.87,20.861,10.0]
[1680650637767,0.79527845,20.87,20.862,21.57]
[1680650637962,114.1989,20.886,20.863,10.0]
[1680650637963,0.9,20.88,20.863,10.0]
[1680650638156,0.9,20.88,20.864,17.0]
[1680650638566,0.9,20.88,20.865,10.0]
[1680650646377,17.9,20.88,20.861,10.0]
[1680650646677,0.9,20.87,20.852,21.579]
[1680650650274,0.9,20.87,20.856,138.0743]
[1680650650471,0.9,20.87,20.861,10.0]
[1680650652277,0.9,20.87,20.862,17.0]
[1680650652481,0.9,20.87,20.863,10.0]
[1680650652883,50.31796501,20.879,20.864,17.0]
[1680650654896,50.31796501,20.879,20.865,10.0]
[1680650655093,11.65503844,20.88,20.865,10.0]
[1680650656487,17.0,20.879,20.863,10.0]
[1680650658398,10.0,20.878,20.863,10.0]
[1680650659910,17.0,20.879,20.863,10.0]
[1680650660396,0.91,20.88,20.864,17.0]
[1680650660596,0.91,20.88,20.865,10.0]
[1680650662506,0.91,20.88,20.866,17.0]
[1680650662695,0.91,20.88,20.867,10.0]
[1680650662899,0.91,20.88,20.868,110.9508]
[1680650663702,0.91,20.88,20.869,10.0]
[1680650667605,0.91,20.88,20.868,110.9508]
[1680650676913,17.91,20.88,20.868,110.9508]
[1680650679816,0.91,20.88,20.869,10.0]
[1680650690528,0.91,20.88,20.868,110.9508]
[1680650690727,17.91,20.88,20.868,110.9508]
[1680650699759,0.91,20.88,20.868,110.9508]
[1680650700748,0.91,20.88,20.869,17.0]
[1680650701150,0.91,20.88,20.87,10.0]
[1680650709473,0.91,20.88,20.869,10.0]
[1680650716678,0.91,20.88,20.868,110.9508]
[1680650724074,17.91,20.88,20.868,110.9508]
[1680650726886,0.91,20.88,20.868,110.9508]
[1680650728466,17.91,20.88,20.868,110.9508]
[1680650729469,0.91,20.88,20.868,110.9508]
[1680650730986,0.91,20.88,20.869,10.0]
[1680650733365,0.91,20.88,20.868,110.9508]
[1680650741890,17.91,20.88,20.868,110.9508]
[1680650742189,7.15103425,20.879,20.868,110.9508]
[1680650742389,17.0,20.878,20.868,110.9508]
[1680650742695,10.0,20.877,20.868,110.9508]
[1680650742991,17.0,20.876,20.868,110.9508]
[1680650743177,10.0,20.875,20.868,110.9508]
[1680650743676,17.0,20.874,20.868,110.9508]
[1680650745392,17.0,20.874,20.86,20.0]
[1680650745698,0.91,20.87,20.859,10.0]
[1680650745874,0.91,20.87,20.86,20.0]
[1680650747582,0.91,20.87,20.859,20.0]
[1680650748487,0.91,20.87,20.858,113.801]
[1680650748995,10.91,20.87,20.858,113.801]
[1680650749396,17.0,20.869,20.858,113.801]
[1680650751096,10.91,20.87,20.858,113.801]
[1680650752096,0.91,20.87,20.858,113.801]
[1680650756604,0.91,20.87,20.859,10.0]
[1680650758393,0.91,20.87,20.859,9.5]
[1680650760597,59.08760931,20.88,20.861,10.0]
[1680650760803,59.08760931,20.88,20.862,17.0]
[1680650760804,0.91,20.88,20.862,17.0]
[1680650761002,0.91,20.88,20.863,118.6433]
[1680650761185,0.91,20.88,20.864,10.0]
[1680650765402,17.91,20.88,20.864,10.0]
[1680650765997,17.91,20.88,20.864,9.5]
[1680650768501,10.0,20.879,20.863,118.6433]
[1680650768694,17.0,20.878,20.863,118.6433]
[1680650769398,10.0,20.877,20.863,118.6433]
[1680650769898,17.0,20.876,20.863,118.6433]
[1680650772412,0.91,20.88,20.863,118.6433]
[1680650772617,17.91,20.88,20.864,10.0]
[1680650772992,0.91,20.88,20.864,10.0]
[1680650774406,17.91,20.88,20.864,10.0]
[1680650777312,10.0,20.879,20.864,10.0]
[1680650779015,17.91,20.88,20.864,10.0]
[1680650781119,17.91,20.88,20.863,118.6433]
[1680650781302,10.0,20.879,20.863,118.6433]
[1680650781908,17.0,20.878,20.863,118.6433]
[1680650791604,0.91,20.88,20.864,10.0]
[1680650791804,0.91,20.88,20.865,17.0]
[1680650792127,0.91,20.88,20.866,10.0]
[1680650792328,0.91,20.88,20.867,17.0]
[1680650792539,0.91,20.88,20.867,118.1305]
[1680650793905,17.91,20.88,20.867,118.1305]
[1680650795022,10.0,20.879,20.867,118.1305]
[1680650795327,17.0,20.878,20.867,118.1305]
[1680650801926,17.91,20.88,20.867,118.1305]
[1680650804930,17.0,20.879,20.867,118.1305]
[1680650805230,0.91,20.88,20.867,118.1305]
[1680650805912,0.91,20.88,20.868,10.0]
[1680650806831,0.91,20.88,20.869,17.0]
[1680650807137,0.91,20.88,20.87,30.0]
[1680650807317,0.91,20.88,20.871,17.0]
[1680650807839,0.91,20.88,20.87,10.0]
[1680650808129,0.91,20.88,20.871,20.0]
[1680650808716,0.41,20.88,20.871,20.0]
[1680650809725,0.41,20.88,20.867,118.1305]
[1680650810623,10.0,20.879,20.867,118.1305]
[1680650811135,17.0,20.878,20.867,118.1305]
[1680650812931,10.0,20.879,20.867,118.1305]
[1680650815630,0.41,20.88,20.867,118.1305]
[1680650816020,17.41,20.88,20.867,118.1305]
[1680650818332,0.41,20.88,20.867,118.1305]
[1680650818637,0.41,20.88,20.868,10.0]
[1680650824544,0.41,20.88,20.869,17.0]
[1680650824745,0.41,20.88,20.87,10.0]
[1680650824935,0.41,20.88,20.871,17.0]
[1680650825135,0.41,20.88,20.872,10.0]
[1680650828325,19.165577,20.886,20.873,17.0]
[1680650828530,19.165577,20.886,20.874,10.0]
[1680650828846,19.165577,20.886,20.876,10.0]
[1680650829045,19.165577,20.886,20.877,17.0]
[1680650829831,19.165577,20.886,20.878,10.0]
[1680650830053,19.165577,20.886,20.879,17.0]
[1680650830435,7.7e-05,20.886,20.88,20.0]
[1680650830638,7.7e-05,20.886,20.881,10.0]
[1680650833751,10.0,20.898,20.881,10.0]
[1680650833951,17.0,20.897,20.881,10.0]
[1680650836947,10.0,20.896,20.881,10.0]
[1680650837261,17.0,20.895,20.881,10.0]
[1680650839759,170.51203709,20.9,20.881,10.0]
[1680650839970,170.51203709,20.9,20.882,17.0]
[1680650839971,17.0,20.899,20.882,17.0]
[1680650840439,17.0,20.899,20.883,10.0]
[1680650842845,17.0,20.899,20.884,17.0]
[1680650843048,17.0,20.899,20.883,10.0]
[1680650843947,17.0,20.899,20.884,17.0]
[1680650844861,0.76,20.9,20.884,17.0]
[1680650845047,0.76,20.9,20.885,111.341]
[1680650845242,0.76,20.9,20.886,17.0]
[1680650845548,0.76,20.9,20.887,10.0]
[1680650845751,0.76,20.9,20.888,17.0]
[1680650846146,0.76,20.9,20.889,10.0]
[1680650846368,0.76,20.9,20.889,128.5196]
[1680650850166,19.149841,20.904,20.89,20.0]
[1680650850547,19.149841,20.904,20.891,10.0]
[1680650850753,19.149841,20.904,20.892,17.0]
[1680650851271,19.149841,20.904,20.893,10.0]
[1680650851463,19.149841,20.904,20.894,17.0]
[1680650853365,19.149841,20.904,20.893,10.0]
[1680650854971,19.149841,20.904,20.894,17.0]
[1680650858267,10.81,20.91,20.895,10.0]
[1680650858469,17.0,20.909,20.895,10.0]
[1680650859470,10.81,20.91,20.895,10.0]
[1680650859667,0.81,20.91,20.895,10.0]
[1680650859868,0.81,20.91,20.897,10.0]
[1680650860262,0.81,20.91,20.898,17.0]
[1680650862770,0.81,20.91,20.895,10.0]
[1680650862982,0.81,20.91,20.894,113.0364]
[1680650863482,0.81,20.91,20.895,17.0]
[1680650863660,10.81,20.91,20.895,17.0]
[1680650867678,0.81,20.91,20.895,17.0]
[1680650867864,0.81,20.91,20.896,10.0]
[1680650868174,0.81,20.91,20.895,27.0]
[1680650868374,10.81,20.91,20.894,113.0364]
[1680650868576,17.0,20.909,20.894,113.0364]
[1680650868768,10.0,20.908,20.894,113.0364]
[1680650868961,17.0,20.907,20.894,113.0364]
[1680650871280,0.81,20.9,20.894,113.0364]
[1680650874480,0.81,20.9,20.89,20.0]
[1680650877770,0.81,20.9,20.885,110.0743]
[1680650878882,10.81,20.9,20.885,110.0743]
[1680650879073,17.0,20.899,20.885,110.0743]
[1680650879276,10.0,20.898,20.885,110.0743]
[1680650880174,10.0,20.896,20.885,110.0743]
[1680650883979,10.0,20.898,20.885,110.0743]
[1680650885986,17.0,20.897,20.885,110.0743]
[1680650888278,17.0,20.899,20.885,110.0743]
[1680650891080,10.0,20.898,20.885,110.0743]
[1680650891288,17.0,20.897,20.885,110.0743]
[1680650895098,17.0,20.897,20.882,19.142418]
[1680650895396,0.76,20.89,20.882,19.142418]
[1680650896993,10.0,20.889,20.882,19.142418]
[1680650901499,10.0,20.889,20.875,108.7794]
[1680650903793,17.76,20.89,20.875,108.7794]
[1680650904103,0.76,20.89,20.879,10.0]
[1680650905807,0.76,20.89,20.88,17.0]
[1680650906010,0.76,20.89,20.881,10.0]
[1680650907496,0.76,20.89,20.879,10.0]
[1680650914296,0.76,20.89,20.876,10.0]
[1680650915901,0.76,20.89,20.875,108.7794]
[1680650916094,17.76,20.89,20.875,108.7794]
[1680650916696,10.0,20.889,20.875,108.7794]
[1680650917015,17.0,20.888,20.875,108.7794]
[1680650921108,17.76,20.89,20.875,108.7794]
[1680650931030,10.0,20.889,20.875,108.7794]
[1680650931217,17.0,20.888,20.875,108.7794]
[1680650940120,0.71,20.89,20.875,108.7794]
[1680650940511,0.71,20.89,20.879,10.0]
[1680650941123,0.71,20.89,20.875,108.7794]
[1680650942127,17.71,20.89,20.875,108.7794]
[1680650943624,10.0,20.889,20.875,108.7794]
[1680650943828,17.0,20.888,20.875,108.7794]
[1680650948337,17.71,20.89,20.875,108.7794]
[1680650950440,10.0,20.889,20.875,108.7794]
[1680650950629,17.0,20.888,20.875,108.7794]